[Event "19th Bangkok Open 2019"]
[Site "Bangkok"]
[Date "2019.04.06"]
[Round "1.6"]
[White "Wongsawan, Thoetsak"]
[Black "Stella, Andrea"]
[Result "0-1"]
[ECO "D85"]
[WhiteElo "1827"]
[BlackElo "2512"]
[Annotator "ChessBase"]
[PlyCount "136"]
[EventDate "2019.04.06"]
[EventType "swiss"]
[EventCountry "THA"]
[SourceTitle "playchess.com"]
[Source "ChessBase"]
[SourceQuality "1"]
[TimeControl "40/5400+30:1800+30"]

1. d4 {[%emt 0:00:00]} Nf6 {[%emt 0:00:00]} 2. c4 {[%emt 0:00:08]} g6 {[%emt 0:00:04]} 3. Nc3 {[%emt 0:00:15]} d5 {[%emt 0:00:13]} 4. cxd5 {[%emt 0:00:08]} Nxd5 {[%emt 0:00:08]} 5. e4 {[%emt 0:00:08]} Nxc3 {[%emt 0:00:08]} 6. bxc3 {[%emt 0:00:02]} Bg7 {[%emt 0:00:12]} 7. Nf3 {[%emt 0:00:09]} c5 {[%emt 0:00:20]} 8. Rb1 {[%emt 0:00:05]} O-O {[%emt 0:00:20]} 9. Be2 {[%emt 0:00:03]} cxd4 {[%emt 0:00:14]} 10. cxd4 {[%emt 0:00:05]} Qa5+ {[%emt 0:00:17]} 11. Qd2 {[%emt 0:01:24]} Qxd2+ {[%emt 0:00:16]} 12. Bxd2 {[%emt 0:00:12]} e6 {[%emt 0:00:25]} 13. O-O {[%emt 0:00:37]} b6 {[%emt 0:00:13]} 14. Rfd1 {[%emt 0:00:57]} Bb7 {[%emt 0:00:27]} 15. d5 {[%emt 0:08:56]} exd5 {[%emt 0:00:11]} 16. exd5 {[%emt 0:00:04]} Nd7 {[%emt 0:00:06]} 17. Bc4 {[%emt 0:03:53]} Rfd8 {[%emt 0:07:17]} 18. Bf4 {[%emt 0:09:01]} Rac8 {[%emt 0:11:08]} 19. Bb3 {[%emt 0:03:37]} h6 {[%emt 0:55:15]} 20. Rbc1 {[%emt 0:05:44]} Rxc1 {[%emt 0:00:51]} 21. Rxc1 {[%emt 0:00:08]} Nc5 {[%emt 0:01:39]} 22. Bc4 {[%emt 0:07:36]} Ne4 {[%emt 0:04:06]} 23. Bc7 {[%emt 0:28:45]} Rd7 {[%emt 0:03:00]} 24. Bb8 {[%emt 0:03:39]} Bxd5 {[%emt 0:06:28]} 25. Bxd5 {[%emt 0:00:38]} Rxd5 {[%emt 0:00:02]} 26. Bxa7 {[%emt 0:00:32]} Nc3 {[%emt 0:00:10]} 27. Kf1 {[%emt 0:02:17]} Rb5 {[%emt 0:00:44]} 28. a3 {[%emt 0:01:53]} Rb2 {[%emt 0:01:56]} 29. g3 {[%emt 0:03:30]} Ne4 {[%emt 0:01:32]} 30. Re1 {[%emt 0:04:40]} Rxf2+ {[%emt 0:00:23]} 31. Kg1 {[%emt 0:00:13]} Rxf3 {[%emt 0:00:02]} 32. Rxe4 {[%emt 0:00:19]} b5 {[%emt 0:02:53]} 33. Bc5 {[%emt 0:01:12]} Rc3 {[%emt 0:01:07]} 34. Bb4 {[%emt 0:00:52]} Rc2 {[%emt 0:02:25]} 35. Re8+ {[%emt 0:15:48]} Kh7 {[%emt 0:00:02]} 36. Rd8 {[%emt 0:00:00]} g5 {[%emt 0:01:17]} 37. g4 {[%emt 0:00:00]} Rc4 {[%emt 0:01:57]} 38. h3 {[%emt 0:00:00]} Bc3 {[%emt 0:00:09]} 39. Bf8 {[%emt 0:00:00]} Bd4+ {[%emt 0:00:56]} 40. Kg2 {[%emt 0:00:00]} Bc5 {[%emt 0:00:00]} 41. Bxc5 {[%emt 0:00:48]} Rxc5 {[%emt 0:00:25]} 42. Rb8 {[%emt 0:01:09]} Kg7 {[%emt 0:01:47]} 43. Rb7 {[%emt 0:00:21]} Kf6 {[%emt 0:01:39]} 44. Rb6+ {[%emt 0:01:03]} Ke5 {[%emt 0:01:01]} 45. Kf3 {[%emt 0:06:47]} Rc3+ {[%emt 0:17:01]} 46. Kg2 {[%emt 0:00:25]} Rb3 {[%emt 0:00:44]} 47. Kh2 {[%emt 0:03:03]} Rb2+ {[%emt 0:03:08]} 48. Kg3 {[%emt 0:00:22]} Rb3+ {[%emt 0:00:02]} 49. Kg2 {[%emt 0:00:16]} f6 {[%emt 0:00:28]} 50. Kh2 {[%emt 0:00:47]} f5 {[%emt 0:00:08]} 51. gxf5 {[%emt 0:01:30]} Kxf5 {[%emt 0:01:46]} 52. Rxh6 {[%emt 0:07:27]} Rxa3 {[%emt 0:00:05]} 53. Rb6 {[%emt 0:00:11]} Rb3 {[%emt 0:00:04]} 54. Kg2 {[%emt 0:00:14]} b4 {[%emt 0:01:17]} 55. Rb8 {[%emt 0:02:10]} Ke4 {[%emt 0:04:52]} 56. Rg8 {[%emt 0:02:11]} Re3 {[%emt 0:03:40]} 57. Rxg5 {[%emt 0:00:50]} b3 {[%emt 0:00:05]} 58. Rb5 {[%emt 0:00:45]} Kd4 {[%emt 0:00:06]} 59. h4 {[%emt 0:00:32]} Kc4 {[%emt 0:01:38]} 60. Rb8 {[%emt 0:08:08]} Re5 {[%emt 0:00:04]} 61. Rf8 {[%emt 0:02:14]} b2 {[%emt 0:00:42]} 62. Rf1 {[%emt 0:00:18]} Re4 {[%emt 0:00:45]} 63. Kg3 {[%emt 0:00:09]} Kb3 {[%emt 0:00:05]} 64. h5 {[%emt 0:01:35]} Ka2 {[%emt 0:00:33]} 65. Rf2 {[%emt 0:01:12]} Ka1 {[%emt 0:00:24]} 66. Rf1+ {[%emt 0:00:23]} b1=Q {[%emt 0:00:12]} 67. Rxb1+ {[%emt 0:00:33]} Kxb1 {[%emt 0:00:05]} 68. Kf3 {[%emt 0:00:31]} Rh4 {[%emt 0:00:05]} 0-1

[Event "19th Bangkok Open 2019"]
[Site "Bangkok"]
[Date "2019.04.07"]
[Round "2.1"]
[White "Wiwatanadate, Poompong"]
[Black "Short, Nigel D"]
[Result "1/2-1/2"]
[ECO "A07"]
[WhiteElo "2025"]
[BlackElo "2636"]
[Annotator "RC"]
[PlyCount "98"]
[EventDate "2019.04.06"]
[EventType "swiss"]
[EventCountry "THA"]
[SourceTitle "playchess.com"]
[Source "ChessBase"]
[SourceQuality "1"]
[TimeControl "40/5400+30:1800+30"]

1. Nf3 {[%emt 0:00:00]} d5 {[%emt 0:00:00]} 2. g3 {[%emt 0:00:00]} Bg4 {[%emt 0:00:57]} 3. Bg2 {[%emt 0:00:00]} Nd7 {[%emt 0:00:08]} 4. c4 {[%emt 0:03:22]} e6 {[%emt 0:00:08]} 5. O-O {[%emt 0:00:33]} Ngf6 {[%emt 0:01:28]} 6. h3 {[%emt 0:01:03]} Bxf3 {[%emt 0:01:39]} 7. Bxf3 {[%emt 0:02:42]} Ne5 {[%emt 0:00:10]} 8. Qb3 {[%emt 0:00:34]} Nxf3+ {[%emt 0:18:12]} 9. Qxf3 {[%emt 0:02:57]} c6 {[%emt 0:00:52]} 10. cxd5 {[%emt 0:00:31]} Qxd5 {[%emt 0:00:55]} 11. Kg2 {[%emt 0:07:39]} Be7 {[%emt 0:07:08]} 12. Nc3 {[%emt 0:01:08]} Qd7 {[%emt 0:00:04]} 13. d3 {[%emt 0:02:15]} O-O {[%emt 0:00:11]} 14. Be3 {[%emt 0:01:18]} Rfd8 {[%emt 0:04:24]} 15. Rfc1 {[%emt 0:02:27]} c5 {[%emt 0:09:08]} 16. Ne4 {[%emt 0:06:18]} b6 {[%emt 0:02:54]} 17. a4 {[%emt 0:09:41]} Nd5 {[%emt 0:01:38]} 18. a5 {[%emt 0:04:14]} Rab8 {[%emt 0:00:56]} 19. axb6 {[%emt 0:04:44]} axb6 {[%emt 0:01:03]} 20. Nc3 {[%emt 0:00:10]} Nb4 {[%emt 0:02:33]} 21. Bf4 {[%emt 0:02:36]} Rb7 {[%emt 0:03:44]} 22. Nb5 {[%emt 0:04:32]} Nc6 {[%emt 0:08:12]} 23. Bd2 {[%emt 0:06:38]} f5 {[%emt 0:08:52]} 24. Bc3 {[%emt 0:10:01]} Bf6 {[%emt 0:00:33]} 25. Rab1 {[%emt 0:07:59]} Rbb8 {[%emt 0:01:46]} 26. Na3 {[%emt 0:02:39]} Rdc8 {[%emt 0:06:30]} 27. Nc4 {[%emt 0:01:47]} b5 {[%emt 0:00:53]} 28. Bxf6 {[%emt 0:02:21]} gxf6 {[%emt 0:01:35]} 29. Nd2 {[%emt 0:00:05]} Nd4 {[%emt 0:00:09]} 30. Qe3 {[%emt 0:00:22]} Qd5+ {[%emt 0:01:35]} 31. f3 {[%emt 0:00:44]} e5 {[%emt 0:01:23]} 32. Kf2 {[%emt 0:02:59]} Kg7 {[%emt 0:03:27]} 33. g4 {[%emt 0:01:08]} f4 {[%emt 0:04:42]} 34. Qe4 {[%emt 0:00:05]} Qd6 {[%emt 0:00:03]} 35. Ra1 {[%emt 0:02:20]} Rc7 {[%emt 0:00:04]} 36. Ra8 {[%emt 0:01:32]} Rxa8 {[%emt 0:06:04]} 37. Qxa8 {[%emt 0:00:10]} c4 {[%emt 0:00:02]} 38. dxc4 {[%emt 0:05:52]} Qb4 {[%emt 0:00:04]} 39. Qd8 {[%emt 0:01:44]} Rf7 {[%emt 0:03:25]} 40. Ne4 {[%emt 0:00:00]} Qxb2 {[%emt 0:00:00]} 41. Re1 {[%emt 0:03:01]} Qa3 {[%emt 0:13:00]} 42. cxb5 {[%emt 0:07:41]} h6 {[%emt 0:10:10]} 43. b6 {[%emt 0:06:27]} Qe3+ {[%emt 0:02:33]} 44. Kf1 {[%emt 0:00:09]} Ne6 {[%emt 0:04:05]} 45. Qe8 {[%emt 0:05:25]} Qxb6 {[%emt 0:00:18]} 46. Rc1 {[%emt 0:03:32]} Rf8 {[%emt 0:03:04]} 47. Qe7+ {[%emt 0:02:04]} Rf7 {[%emt 0:00:03]} 48. Qe8 {[%emt 0:01:15]} Rf8 {[%emt 0:00:05]} 49. Qe7+ {[%emt 0:01:41]} Rf7 {[%emt 0:00:17]} 1/2-1/2

[Event "19th Bangkok Open 2019"]
[Site "Bangkok"]
[Date "2019.04.07"]
[Round "2.3"]
[White "Nouri, Alekhine"]
[Black "Lalith Babu M R"]
[Result "1/2-1/2"]
[ECO "B12"]
[WhiteElo "2001"]
[BlackElo "2577"]
[Annotator "ChessBase"]
[PlyCount "78"]
[EventDate "2019.04.06"]
[EventType "swiss"]
[EventCountry "THA"]
[SourceTitle "playchess.com"]
[Source "ChessBase"]
[SourceQuality "1"]
[TimeControl "40/5400+30:1800+30"]

1. e4 {[%emt 0:00:00]} c6 {[%emt 0:00:00]} 2. d4 {[%emt 0:00:00]} d5 {[%emt 0:00:00]} 3. e5 {[%emt 0:00:00]} Bf5 {[%emt 0:00:00]} 4. Nf3 {[%emt 0:00:17]} e6 {[%emt 0:00:00]} 5. Be2 {[%emt 0:00:06]} Ne7 {[%emt 0:00:00]} 6. O-O {[%emt 0:00:28]} Ng6 {[%emt 0:00:00]} 7. Be3 {[%emt 0:01:28]} Nd7 {[%emt 0:01:38]} 8. Ne1 {[%emt 0:01:37]} h5 {[%emt 0:00:23]} 9. a4 {[%emt 0:00:07]} h4 {[%emt 0:01:58]} 10. a5 {[%emt 0:00:57]} Bb4 {[%emt 0:07:02]} 11. a6 {[%emt 0:01:33]} b6 {[%emt 0:00:27]} 12. h3 {[%emt 0:08:45]} Bf8 {[%emt 0:03:49]} 13. Nd2 {[%emt 0:02:09]} Ne7 {[%emt 0:02:08]} 14. Ndf3 {[%emt 0:07:03]} f6 {[%emt 0:02:55]} 15. Nd3 {[%emt 0:04:59]} Ng6 {[%emt 0:01:14]} 16. Nf4 {[%emt 0:15:24]} fxe5 {[%emt 0:08:51]} 17. Nxg6 {[%emt 0:01:18]} Bxg6 {[%emt 0:00:07]} 18. Ng5 {[%emt 0:01:49]} Qf6 {[%emt 0:02:07]} 19. dxe5 {[%emt 0:11:32]} Nxe5 {[%emt 0:01:32]} 20. Re1 {[%emt 0:03:04]} Bc5 {[%emt 0:15:53]} 21. Bxc5 {[%emt 0:02:20]} bxc5 {[%emt 0:02:49]} 22. f4 {[%emt 0:05:10]} O-O {[%emt 0:03:45]} 23. Nxe6 {[%emt 0:02:57]} Qxe6 {[%emt 0:00:32]} 24. Bg4 {[%emt 0:00:04]} Qf6 {[%emt 0:03:05]} 25. fxe5 {[%emt 0:00:42]} Qf2+ {[%emt 0:05:10]} 26. Kh1 {[%emt 0:00:05]} Bf5 {[%emt 0:01:49]} 27. Rf1 {[%emt 0:14:09]} Bxg4 {[%emt 0:00:18]} 28. Qxg4 {[%emt 0:00:08]} Qxf1+ {[%emt 0:02:02]} 29. Rxf1 {[%emt 0:00:05]} Rxf1+ {[%emt 0:00:04]} 30. Kh2 {[%emt 0:00:04]} Re8 {[%emt 0:00:59]} 31. Qxh4 {[%emt 0:01:36]} Rf7 {[%emt 0:00:51]} 32. Qa4 {[%emt 0:00:33]} Re6 {[%emt 0:02:23]} 33. Qa5 {[%emt 0:01:32]} c4 {[%emt 0:00:29]} 34. Qd8+ {[%emt 0:02:23]} Kh7 {[%emt 0:00:06]} 35. Qh4+ {[%emt 0:00:05]} Rh6 {[%emt 0:01:10]} 36. Qg4 {[%emt 0:00:12]} Re7 {[%emt 0:02:39]} 37. Qf5+ {[%emt 0:01:11]} Kg8 {[%emt 0:00:10]} 38. Qc8+ {[%emt 0:00:07]} Kh7 {[%emt 0:00:50]} 39. Qf5+ {[%emt 0:00:07]} Kg8 {[%emt 0:00:21]} 1/2-1/2

[Event "19th Bangkok Open 2019"]
[Site "Bangkok"]
[Date "2019.04.07"]
[Round "2.4"]
[White "Sengupta, Deep"]
[Black "Bhattacharya, Niladri Shekhar"]
[Result "1-0"]
[ECO "D30"]
[WhiteElo "2551"]
[BlackElo "1998"]
[Annotator "ChessBase"]
[PlyCount "71"]
[EventDate "2019.04.06"]
[EventType "swiss"]
[EventCountry "THA"]
[SourceTitle "playchess.com"]
[Source "ChessBase"]
[SourceQuality "1"]
[TimeControl "40/5400+30:1800+30"]

1. d4 {[%emt 0:01:25]} Nf6 {[%emt 0:00:07]} 2. Bg5 {[%emt 0:00:19]} d5 {[%emt 0:00:13]} 3. e3 {[%emt 0:00:45]} c6 {[%emt 0:02:50]} 4. Bd3 {[%emt 0:01:51]} Nbd7 {[%emt 0:00:28]} 5. Nf3 {[%emt 0:00:57]} e6 {[%emt 0:03:20]} 6. Nbd2 {[%emt 0:02:32]} Be7 {[%emt 0:00:17]} 7. c4 {[%emt 0:01:08]} h6 {[%emt 0:03:54]} 8. Bh4 {[%emt 0:00:06]} b6 {[%emt 0:02:21]} 9. Qa4 {[%emt 0:19:53]} Bb7 {[%emt 0:03:35]} 10. cxd5 {[%emt 0:00:08]} exd5 {[%emt 0:02:06]} 11. O-O {[%emt 0:05:15]} O-O {[%emt 0:04:08]} 12. Rac1 {[%emt 0:07:32]} a6 {[%emt 0:11:16]} 13. Bg3 {[%emt 0:04:36]} Nh5 {[%emt 0:07:57]} 14. Be5 {[%emt 0:04:20]} g6 {[%emt 0:14:18]} 15. Rfd1 {[%emt 0:09:33]} Qe8 {[%emt 0:04:40]} 16. Qb3 {[%emt 0:07:37]} c5 {[%emt 0:05:23]} 17. dxc5 {[%emt 0:05:34]} Nxc5 {[%emt 0:00:24]} 18. Qc2 {[%emt 0:00:57]} Rc8 {[%emt 0:01:24]} 19. Be2 {[%emt 0:02:25]} Nd7 {[%emt 0:03:39]} 20. Bc3 {[%emt 0:03:33]} Bf6 {[%emt 0:02:01]} 21. Qb3 {[%emt 0:01:01]} Bxc3 {[%emt 0:03:39]} 22. Rxc3 {[%emt 0:00:06]} Rxc3 {[%emt 0:02:44]} 23. Qxc3 {[%emt 0:00:03]} Nc5 {[%emt 0:01:42]} 24. Qb4 {[%emt 0:01:26]} Qd8 {[%emt 0:07:01]} 25. Nc4 {[%emt 0:08:03]} Nd7 {[%emt 0:03:35]} 26. Nfe5 {[%emt 0:05:17]} Nxe5 {[%emt 0:02:34]} 27. Nxe5 {[%emt 0:00:02]} Nf6 {[%emt 0:00:42]} 28. Nc4 {[%emt 0:01:16]} Bc6 {[%emt 0:03:51]} 29. Bf3 {[%emt 0:02:34]} Qc7 {[%emt 0:01:38]} 30. Nd2 {[%emt 0:01:30]} Bb5 {[%emt 0:01:49]} 31. Qd4 {[%emt 0:00:36]} Qd8 {[%emt 0:01:02]} 32. Nb1 {[%emt 0:01:31]} Bd7 {[%emt 0:00:32]} 33. Nc3 {[%emt 0:00:17]} Re8 {[%emt 0:00:47]} 34. Nxd5 {[%emt 0:00:42]} Nxd5 {[%emt 0:00:11]} 35. Qxd5 {[%emt 0:00:34]} Re7 {[%emt 0:00:45]} 36. Bg4 {[%emt 0:00:14]} 1-0

[Event "19th Bangkok Open 2019"]
[Site "Bangkok"]
[Date "2019.04.07"]
[Round "2.5"]
[White "Goh, Zi Han"]
[Black "Zhao, Zong-Yuan"]
[Result "0-1"]
[ECO "D31"]
[WhiteElo "1992"]
[BlackElo "2529"]
[Annotator "ChessBase"]
[PlyCount "84"]
[EventDate "2019.04.06"]
[EventType "swiss"]
[EventCountry "THA"]
[SourceTitle "playchess.com"]
[Source "ChessBase"]
[SourceQuality "1"]
[TimeControl "40/5400+30:1800+30"]

1. d4 {[%emt 0:00:00]} d5 {[%emt 0:00:00]} 2. c4 {[%emt 0:00:18]} e6 {[%emt 0:00:00]} 3. Nc3 {[%emt 0:00:18]} c6 {[%emt 0:00:00]} 4. Nf3 {[%emt 0:00:38]} dxc4 {[%emt 0:00:00]} 5. a4 {[%emt 0:00:20]} Bb4 {[%emt 0:00:20]} 6. e4 {[%emt 0:01:50]} b5 {[%emt 0:00:39]} 7. Be2 {[%emt 0:02:11]} Bb7 {[%emt 0:03:52]} 8. O-O {[%emt 0:01:28]} a6 {[%emt 0:00:03]} 9. Qc2 {[%emt 0:07:36]} Ne7 {[%emt 0:03:19]} 10. b3 {[%emt 0:08:58]} cxb3 {[%emt 0:09:27]} 11. Qxb3 {[%emt 0:00:27]} Bd6 {[%emt 0:00:06]} 12. e5 {[%emt 0:04:39]} Bc7 {[%emt 0:00:25]} 13. Ba3 {[%emt 0:00:46]} O-O {[%emt 0:02:37]} 14. Ne4 {[%emt 0:05:42]} c5 {[%emt 0:06:46]} 15. Nxc5 {[%emt 0:02:40]} Bd5 {[%emt 0:01:14]} 16. Qc2 {[%emt 0:07:23]} Nbc6 {[%emt 0:01:41]} 17. Nb7 {[%emt 0:10:31]} Qb8 {[%emt 0:08:38]} 18. Bxe7 {[%emt 0:03:05]} Nxe7 {[%emt 0:07:56]} 19. Nc5 {[%emt 0:01:21]} Rc8 {[%emt 0:05:33]} 20. axb5 {[%emt 0:06:48]} axb5 {[%emt 0:00:22]} 21. Rxa8 {[%emt 0:01:49]} Qxa8 {[%emt 0:01:49]} 22. Qb2 {[%emt 0:01:38]} Bc6 {[%emt 0:09:42]} 23. Ra1 {[%emt 0:04:03]} Qb8 {[%emt 0:00:10]} 24. Nd2 {[%emt 0:03:29]} Bb6 {[%emt 0:11:20]} 25. Ndb3 {[%emt 0:01:51]} Nf5 {[%emt 0:05:26]} 26. Bd3 {[%emt 0:05:56]} Nh4 {[%emt 0:02:45]} 27. Bf1 {[%emt 0:01:54]} h6 {[%emt 0:01:24]} 28. Qd2 {[%emt 0:01:53]} Qc7 {[%emt 0:03:00]} 29. Qf4 {[%emt 0:02:23]} Qe7 {[%emt 0:01:40]} 30. Ra6 {[%emt 0:01:21]} Rb8 {[%emt 0:00:52]} 31. f3 {[%emt 0:01:59]} Bd5 {[%emt 0:02:04]} 32. Kh1 {[%emt 0:04:13]} b4 {[%emt 0:02:13]} 33. Qd2 {[%emt 0:01:49]} Bxc5 {[%emt 0:02:30]} 34. Nxc5 {[%emt 0:00:02]} b3 {[%emt 0:00:24]} 35. Qb2 {[%emt 0:02:29]} Nf5 {[%emt 0:02:41]} 36. Bd3 {[%emt 0:01:40]} Qh4 {[%emt 0:00:43]} 37. Ra1 {[%emt 0:01:18]} Qxd4 {[%emt 0:02:38]} 38. Qxd4 {[%emt 0:01:19]} Nxd4 {[%emt 0:00:02]} 39. Nd7 {[%emt 0:00:51]} b2 {[%emt 0:01:04]} 40. Rb1 {[%emt 0:00:00]} Rb3 {[%emt 0:00:00]} 41. Nc5 {[%emt 0:02:59]} Rc3 {[%emt 0:03:07]} 42. Rxb2 {[%emt 0:00:25]} Rc1+ {[%emt 0:00:06]} 0-1

[Event "19th Bangkok Open 2019"]
[Site "Bangkok"]
[Date "2019.04.07"]
[Round "2.6"]
[White "Stella, Andrea"]
[Black "Mohd Saprin, Amir Ghaazi"]
[Result "1-0"]
[ECO "A57"]
[WhiteElo "2512"]
[BlackElo "1971"]
[Annotator "ChessBase"]
[PlyCount "101"]
[EventDate "2019.04.06"]
[EventType "swiss"]
[EventCountry "THA"]
[SourceTitle "playchess.com"]
[Source "ChessBase"]
[SourceQuality "1"]
[TimeControl "40/5400+30:1800+30"]

1. d4 {[%emt 0:03:19]} Nf6 {[%emt 0:00:00]} 2. c4 {[%emt 0:00:05]} c5 {[%emt 0:00:00]} 3. d5 {[%emt 0:00:05]} b5 {[%emt 0:00:00]} 4. cxb5 {[%emt 0:00:04]} a6 {[%emt 0:00:13]} 5. e3 {[%emt 0:00:13]} axb5 {[%emt 0:00:18]} 6. Bxb5 {[%emt 0:00:03]} Qa5+ {[%emt 0:00:31]} 7. Nc3 {[%emt 0:00:04]} Bb7 {[%emt 0:00:23]} 8. Bd2 {[%emt 0:00:40]} Qb6 {[%emt 0:01:14]} 9. Nf3 {[%emt 0:00:11]} Nxd5 {[%emt 0:01:59]} 10. a4 {[%emt 0:00:17]} e6 {[%emt 0:07:23]} 11. O-O {[%emt 0:02:05]} Be7 {[%emt 0:01:57]} 12. e4 {[%emt 0:00:07]} Nxc3 {[%emt 0:08:58]} 13. Bxc3 {[%emt 0:00:04]} Bxe4 {[%emt 0:04:04]} 14. Ne5 {[%emt 0:06:47]} Qb7 {[%emt 0:21:05]} 15. Qg4 {[%emt 0:13:15]} f6 {[%emt 0:27:49]} 16. Qxg7 {[%emt 0:27:53]} Rf8 {[%emt 0:00:10]} 17. f3 {[%emt 0:01:18]} Bf5 {[%emt 0:09:44]} 18. Nc4 {[%emt 0:02:35]} Rf7 {[%emt 0:00:55]} 19. Qg8+ {[%emt 0:03:38]} Rf8 {[%emt 0:00:25]} 20. Qg3 {[%emt 0:00:02]} Bd3 {[%emt 0:05:00]} 21. Na5 {[%emt 0:06:59]} Qb6 {[%emt 0:00:22]} 22. Bxd3 {[%emt 0:08:31]} c4+ {[%emt 0:00:06]} 23. Kh1 {[%emt 0:00:01]} cxd3 {[%emt 0:00:10]} 24. Rfd1 {[%emt 0:02:04]} Nc6 {[%emt 0:01:26]} 25. Nxc6 {[%emt 0:00:11]} Qxc6 {[%emt 0:00:17]} 26. a5 {[%emt 0:01:23]} Qc4 {[%emt 0:01:13]} 27. f4 {[%emt 0:03:15]} Bb4 {[%emt 0:01:55]} 28. Bxb4 {[%emt 0:01:06]} Qxb4 {[%emt 0:00:06]} 29. Qxd3 {[%emt 0:00:04]} Rf7 {[%emt 0:00:19]} 30. f5 {[%emt 0:00:27]} Qxb2 {[%emt 0:04:08]} 31. fxe6 {[%emt 0:01:42]} dxe6 {[%emt 0:00:05]} 32. Qd6 {[%emt 0:02:50]} Qb7 {[%emt 0:01:55]} 33. Qxe6+ {[%emt 0:00:10]} Kf8 {[%emt 0:00:06]} 34. a6 {[%emt 0:00:48]} Qe7 {[%emt 0:00:49]} 35. Qd5 {[%emt 0:02:36]} Ra7 {[%emt 0:00:19]} 36. h3 {[%emt 0:02:38]} Kg7 {[%emt 0:00:14]} 37. Qd3 {[%emt 0:02:14]} Qe5 {[%emt 0:00:57]} 38. Re1 {[%emt 0:00:32]} Qc7 {[%emt 0:00:25]} 39. Re8 {[%emt 0:01:57]} Re7 {[%emt 0:01:43]} 40. Rxe7+ {[%emt 0:00:00]} Qxe7 {[%emt 0:00:00]} 41. Qg3+ {[%emt 0:03:03]} Kf7 {[%emt 0:03:10]} 42. Qb8 {[%emt 0:02:17]} Kg6 {[%emt 0:01:39]} 43. Qg8+ {[%emt 0:05:26]} Qg7 {[%emt 0:09:43]} 44. Qd8 {[%emt 0:03:11]} Qf7 {[%emt 0:01:20]} 45. Ra3 {[%emt 0:01:11]} h6 {[%emt 0:01:33]} 46. Qh8 {[%emt 0:00:52]} Qe6 {[%emt 0:03:21]} 47. Qd8 {[%emt 0:15:14]} Qe1+ {[%emt 0:12:14]} 48. Kh2 {[%emt 0:00:24]} Qe5+ {[%emt 0:01:41]} 49. Rg3+ {[%emt 0:00:52]} Kf5 {[%emt 0:00:30]} 50. Qc8+ {[%emt 0:01:01]} Ke4 {[%emt 0:00:35]} 51. Qc4+ {[%emt 0:00:16] Kd5 [%clk 0:00:00]} 1-0

[Event "19th Bangkok Open 2019"]
[Site "Bangkok"]
[Date "2019.04.07"]
[Round "2.8"]
[White "Ly, Moulthun"]
[Black "Sibi Visal R"]
[Result "1-0"]
[ECO "B12"]
[WhiteElo "2490"]
[BlackElo "1955"]
[Annotator "RC"]
[PlyCount "83"]
[EventDate "2019.04.06"]
[EventType "swiss"]
[EventCountry "THA"]
[SourceTitle "playchess.com"]
[Source "ChessBase"]
[SourceQuality "1"]
[TimeControl "40/5400+30:1800+30"]

1. e4 {[%emt 0:00:00]} c6 {[%emt 0:00:00]} 2. d4 {[%emt 0:00:45]} d5 {[%emt 0:00:00]} 3. e5 {[%emt 0:00:07]} Bf5 {[%emt 0:00:00]} 4. Nf3 {[%emt 0:00:20]} e6 {[%emt 0:00:00]} 5. Be2 {[%emt 0:00:06]} Nd7 {[%emt 0:00:00]} 6. O-O {[%emt 0:00:22]} Bg6 {[%emt 0:01:12]} 7. c3 {[%emt 0:01:11]} Ne7 {[%emt 0:05:27]} 8. a4 {[%emt 0:01:07]} c5 {[%emt 0:01:13]} 9. dxc5 {[%emt 0:02:18]} Nxc5 {[%emt 0:00:13]} 10. a5 {[%emt 0:00:40]} Nc6 {[%emt 0:03:39]} 11. b4 {[%emt 0:01:24]} Nd7 {[%emt 0:00:32]} 12. a6 {[%emt 0:00:48]} b6 {[%emt 0:02:38]} 13. Bb5 {[%emt 0:06:20]} Rc8 {[%emt 0:01:24]} 14. Qa4 {[%emt 0:00:34]} Qc7 {[%emt 0:04:27]} 15. Bf4 {[%emt 0:05:43]} Be7 {[%emt 0:01:39]} 16. Nbd2 {[%emt 0:01:02]} O-O {[%emt 0:05:29]} 17. Rfe1 {[%emt 0:03:21]} Rfd8 {[%emt 0:07:25]} 18. h3 {[%emt 0:04:23]} Nf8 {[%emt 0:03:58]} 19. Rac1 {[%emt 0:04:41]} h6 {[%emt 0:05:25]} 20. Nb3 {[%emt 0:04:38]} Be4 {[%emt 0:11:10]} 21. Nbd4 {[%emt 0:04:45]} Nxd4 {[%emt 0:03:40]} 22. cxd4 {[%emt 0:04:33]} Qb8 {[%emt 0:00:56]} 23. Nd2 {[%emt 0:00:44]} Bh7 {[%emt 0:08:07]} 24. Bc6 {[%emt 0:08:11]} b5 {[%emt 0:09:52]} 25. Qa5 {[%emt 0:04:57]} Bd3 {[%emt 0:02:41]} 26. Qa3 {[%emt 0:09:24]} Qb6 {[%emt 0:02:54]} 27. Bb7 {[%emt 0:00:39]} Rxc1 {[%emt 0:00:09]} 28. Rxc1 {[%emt 0:00:24]} Bc4 {[%emt 0:02:50]} 29. Be3 {[%emt 0:01:14]} Nd7 {[%emt 0:10:13]} 30. Nb3 {[%emt 0:01:06]} Nb8 {[%emt 0:04:39]} 31. Nc5 {[%emt 0:00:23]} Nc6 {[%emt 0:01:40]} 32. Qb2 {[%emt 0:07:14]} Qc7 {[%emt 0:00:26]} 33. f4 {[%emt 0:07:18]} Rb8 {[%emt 0:01:02]} 34. Ra1 {[%emt 0:02:38]} Nd8 {[%emt 0:00:25]} 35. Ra3 {[%emt 0:02:47]} Bxc5 {[%emt 0:00:32]} 36. dxc5 {[%emt 0:00:17]} Nxb7 {[%emt 0:00:53]} 37. axb7 {[%emt 0:00:08]} Qxb7 {[%emt 0:00:21]} 38. Bd4 {[%emt 0:01:20]} a6 {[%emt 0:00:35]} 39. Qf2 {[%emt 0:03:49]} Rc8 {[%emt 0:00:50]} 40. Qh4 {[%emt 0:00:00]} Qc6 {[%emt 0:00:00]} 41. Rg3 {[%emt 0:04:50]} g6 {[%emt 0:08:36]} 42. f5 {[%emt 0:08:40]} 1-0